[Event "*** SCC Grand Prix: Titled Tuesday Blitz"]
[Site "Chess.com"]
[Date "2020.09.08"]
[Round "3"]
[White "harvsp123"]
[Black "mr65"]
[Result "1-0"]
[WhiteElo "2478"]
[BlackElo "2160"]
[TimeControl "180+1"]
[EndTime "10:29:08 PDT"]
[Termination "harvsp123 won on time"]

1. e4 {[%clk 0:03:00.9]} 1... e5 {[%clk 0:02:59.2]} 2. Nf3 {[%clk 0:03:00.1]}
2... Nc6 {[%clk 0:02:59.1]} 3. Bc4 {[%clk 0:03:00.1]} 3... Nf6 {[%clk 0:02:58]}
4. d3 {[%clk 0:02:59.5]} 4... Bc5 {[%clk 0:02:56.8]} 5. O-O {[%clk 0:02:58.9]}
5... Bb6 {[%clk 0:02:51]} 6. h3 {[%clk 0:02:44.1]} 6... h6 {[%clk 0:02:50.6]} 7.
Re1 {[%clk 0:02:44.4]} 7... O-O {[%clk 0:02:49]} 8. c3 {[%clk 0:02:43.6]} 8...
a5 {[%clk 0:02:40.9]} 9. a4 {[%clk 0:02:40.3]} 9... d6 {[%clk 0:02:33.4]} 10.
Na3 {[%clk 0:02:40.3]} 10... Ne7 {[%clk 0:02:30.7]} 11. Bb3 {[%clk 0:02:37.3]}
11... Ng6 {[%clk 0:02:29.3]} 12. Nc4 {[%clk 0:02:37.6]} 12... Ra6 {[%clk
0:02:21.1]} 13. Nxb6 {[%clk 0:02:30.4]} 13... Rxb6 {[%clk 0:02:20.4]} 14. Be3
{[%clk 0:02:22.1]} 14... c5 {[%clk 0:02:20]} 15. d4 {[%clk 0:02:20.1]} 15... Rc6
{[%clk 0:02:16.9]} 16. d5 {[%clk 0:01:48.1]} 16... Rc7 {[%clk 0:02:11.9]} 17.
Nd2 {[%clk 0:01:46.2]} 17... Nxe4 {[%clk 0:01:49.3]} 18. Nxe4 {[%clk 0:01:44.8]}
18... f5 {[%clk 0:01:48.9]} 19. Nxc5 {[%clk 0:01:27.3]} 19... Rxc5 {[%clk
0:01:35.6]} 20. Bxc5 {[%clk 0:01:26.4]} 20... dxc5 {[%clk 0:01:35.3]} 21. d6+
{[%clk 0:01:26.2]} 21... Kh8 {[%clk 0:01:33.3]} 22. Bc4 {[%clk 0:01:15.4]} 22...
Rf6 {[%clk 0:01:05.9]} 23. Qd5 {[%clk 0:01:13.1]} 23... Rxd6 {[%clk 0:01:02.9]}
24. Qxc5 {[%clk 0:01:12.2]} 24... b6 {[%clk 0:00:59.5]} 25. Qe3 {[%clk
0:01:02.1]} 25... Bb7 {[%clk 0:00:56.5]} 26. Qg3 {[%clk 0:00:50.5]} 26... Nf4
{[%clk 0:00:44.8]} 27. Rxe5 {[%clk 0:00:49.6]} 27... Rg6 {[%clk 0:00:25.3]} 28.
Qxf4 {[%clk 0:00:27.5]} 28... Rxg2+ {[%clk 0:00:24.7]} 29. Kf1 {[%clk 0:00:28]}
29... Qc8 {[%clk 0:00:06.7]} 30. Rae1 {[%clk 0:00:23.8]} 1-0

[Event "*** SCC Grand Prix: Titled Tuesday Blitz"]
[Site "Chess.com"]
[Date "2020.09.08"]
[Round "3"]
[White "chessdjw"]
[Black "maxip32"]
[Result "1-0"]
[WhiteElo "2578"]
[BlackElo "2378"]
[TimeControl "180+1"]
[EndTime "10:29:11 PDT"]
[Termination "chessdjw won by resignation"]

1. e4 {[%clk 0:02:58.6]} 1... c5 {[%clk 0:02:59.5]} 2. Nf3 {[%clk 0:02:55.2]}
2... d6 {[%clk 0:02:59.8]} 3. d4 {[%clk 0:02:53.2]} 3... cxd4 {[%clk 0:03:00.7]}
4. Nxd4 {[%clk 0:02:53.5]} 4... Nf6 {[%clk 0:03:01.3]} 5. Nc3 {[%clk 0:02:51.1]}
5... a6 {[%clk 0:03:01.4]} 6. Be3 {[%clk 0:02:51.7]} 6... e5 {[%clk 0:03:01.4]}
7. Nb3 {[%clk 0:02:51.2]} 7... Be6 {[%clk 0:03:01]} 8. Qd2 {[%clk 0:02:50.7]}
8... Be7 {[%clk 0:02:56.7]} 9. f3 {[%clk 0:02:50.5]} 9... h5 {[%clk 0:02:56.2]}
10. Nd5 {[%clk 0:02:46.5]} 10... Bxd5 {[%clk 0:02:47.6]} 11. exd5 {[%clk
0:02:45.8]} 11... Nbd7 {[%clk 0:02:48.5]} 12. Be2 {[%clk 0:02:20.4]} 12... O-O
{[%clk 0:02:44.8]} 13. Na5 {[%clk 0:01:51.7]} 13... Qc7 {[%clk 0:02:42.4]} 14.
c4 {[%clk 0:01:48.6]} 14... e4 {[%clk 0:02:10.5]} 15. O-O {[%clk 0:01:47.9]}
15... exf3 {[%clk 0:02:09.5]} 16. gxf3 {[%clk 0:01:48.8]} 16... Ne5 {[%clk
0:02:00.7]} 17. b4 {[%clk 0:01:40.8]} 17... b6 {[%clk 0:02:00.4]} 18. f4 {[%clk
0:01:19.9]} 18... Neg4 {[%clk 0:01:54]} 19. Nc6 {[%clk 0:01:13.2]} 19... Nxe3
{[%clk 0:01:53.7]} 20. Qxe3 {[%clk 0:01:11.6]} 20... Rfe8 {[%clk 0:01:54.6]} 21.
Bd3 {[%clk 0:01:01.3]} 21... Bf8 {[%clk 0:01:47.9]} 22. Qd4 {[%clk 0:00:47.3]}
22... a5 {[%clk 0:01:32.3]} 23. a3 {[%clk 0:00:42.1]} 23... Nd7 {[%clk
0:01:14.9]} 24. Kh1 {[%clk 0:00:39.1]} 24... g6 {[%clk 0:01:12.8]} 25. f5 {[%clk
0:00:35.1]} 25... Bg7 {[%clk 0:01:09.8]} 26. f6 {[%clk 0:00:35.3]} 26... Bh6
{[%clk 0:01:09.6]} 27. Bxg6 {[%clk 0:00:33.4]} 27... Ne5 {[%clk 0:00:59.5]} 28.
Bxh5 {[%clk 0:00:29.4]} 28... Nxc6 {[%clk 0:00:56]} 29. Rg1+ {[%clk 0:00:28.9]}
29... Kh8 {[%clk 0:00:54]} 30. Qh4 {[%clk 0:00:19.8]} 30... Re4 {[%clk
0:00:11.8]} 31. Qxe4 {[%clk 0:00:17.6]} 31... Ne5 {[%clk 0:00:11.5]} 32. Be2
{[%clk 0:00:17.7]} 1-0

[Event "*** SCC Grand Prix: Titled Tuesday Blitz"]
[Site "Chess.com"]
[Date "2020.09.08"]
[Round "3"]
[White "killer311"]
[Black "Zarinur"]
[Result "1-0"]
[WhiteElo "2472"]
[BlackElo "2120"]
[TimeControl "180+1"]
[EndTime "10:29:11 PDT"]
[Termination "killer311 won on time"]

1. d4 {[%clk 0:02:52.3]} 1... Nf6 {[%clk 0:02:58.9]} 2. c4 {[%clk 0:02:51.1]}
2... e6 {[%clk 0:02:58.8]} 3. Nc3 {[%clk 0:02:50.7]} 3... Bb4 {[%clk 0:02:56.1]}
4. Bd2 {[%clk 0:02:51.1]} 4... c5 {[%clk 0:02:52.4]} 5. e3 {[%clk 0:02:51.2]}
5... Nc6 {[%clk 0:02:49]} 6. Nf3 {[%clk 0:02:50.7]} 6... O-O {[%clk 0:02:47.5]}
7. Bd3 {[%clk 0:02:48.4]} 7... d6 {[%clk 0:02:41.7]} 8. O-O {[%clk 0:02:47.8]}
8... e5 {[%clk 0:02:38.8]} 9. d5 {[%clk 0:02:44.6]} 9... Na5 {[%clk 0:02:02.8]}
10. Qc2 {[%clk 0:02:35.7]} 10... b6 {[%clk 0:01:51.3]} 11. a3 {[%clk 0:02:24.8]}
11... Bxc3 {[%clk 0:01:49.7]} 12. Bxc3 {[%clk 0:02:25.7]} 12... Ba6 {[%clk
0:01:46.2]} 13. Bxa5 {[%clk 0:02:07.9]} 13... bxa5 {[%clk 0:01:45.1]} 14. b4
{[%clk 0:02:07.3]} 14... Qe7 {[%clk 0:00:38.4]} 15. e4 {[%clk 0:02:01.6]} 15...
axb4 {[%clk 0:00:32.6]} 16. axb4 {[%clk 0:02:00.1]} 16... Bb7 {[%clk 0:00:32.5]}
17. Rfb1 {[%clk 0:01:58.1]} 17... cxb4 {[%clk 0:00:26.6]} 18. Rxb4 {[%clk
0:01:59]} 18... Rfb8 {[%clk 0:00:25.3]} 19. Qb2 {[%clk 0:01:57.1]} 19... a5
{[%clk 0:00:22.9]} 20. Rb5 {[%clk 0:01:54.6]} 20... a4 {[%clk 0:00:21.4]} 21.
Qb4 {[%clk 0:01:34.7]} 21... Qc7 {[%clk 0:00:20.6]} 22. Rxa4 {[%clk 0:01:28.2]}
22... Rxa4 {[%clk 0:00:21.5]} 23. Qxa4 {[%clk 0:01:28.5]} 23... Ra8 {[%clk
0:00:21.4]} 24. Qb4 {[%clk 0:01:23.3]} 24... Bc8 {[%clk 0:00:19.2]} 25. h3
{[%clk 0:01:17.8]} 25... Bd7 {[%clk 0:00:16]} 26. Rb7 {[%clk 0:01:17.1]} 26...
Qc8 {[%clk 0:00:16]} 27. Rb6 {[%clk 0:01:06.2]} 27... Ne8 {[%clk 0:00:11.1]} 28.
Kh2 {[%clk 0:01:00.9]} 28... g6 {[%clk 0:00:11.2]} 29. Qb2 {[%clk 0:00:57.5]}
29... Kg7 {[%clk 0:00:11]} 30. Rb4 {[%clk 0:00:56.2]} 30... Nc7 {[%clk
0:00:07.8]} 31. c5 {[%clk 0:00:54.5]} 31... dxc5 {[%clk 0:00:06.1]} 32. Qxe5+
{[%clk 0:00:52.6]} 32... Kg8 {[%clk 0:00:05.9]} 33. Rb2 {[%clk 0:00:51.7]} 33...
Ne8 {[%clk 0:00:04.7]} 34. Rc2 {[%clk 0:00:50.8]} 34... Ra4 {[%clk 0:00:03.6]}
35. Qe7 {[%clk 0:00:49.9]} 35... c4 {[%clk 0:00:03.4]} 36. Ne5 {[%clk
0:00:49.6]} 36... cxd3 {[%clk 0:00:02.8]} 37. Rxc8 {[%clk 0:00:48.3]} 37... Bxc8
{[%clk 0:00:02.4]} 38. Qxe8+ {[%clk 0:00:46.3]} 38... Kg7 {[%clk 0:00:02.1]} 39.
Qxa4 {[%clk 0:00:46.9]} 39... Kf6 {[%clk 0:00:01.7]} 40. Nxd3 {[%clk 0:00:46.6]}
1-0

[Event "*** SCC Grand Prix: Titled Tuesday Blitz"]
[Site "Chess.com"]
[Date "2020.09.08"]
[Round "3"]
[White "GalperinPlaton"]
[Black "Bigfish1995"]
[Result "0-1"]
[WhiteElo "2707"]
[BlackElo "3017"]
[TimeControl "180+1"]
[EndTime "10:29:12 PDT"]
[Termination "Bigfish1995 won by resignation"]

1. d4 {[%clk 0:03:00.8]} 1... Nf6 {[%clk 0:02:58.5]} 2. c4 {[%clk 0:03:00.6]}
2... e6 {[%clk 0:02:57]} 3. Nf3 {[%clk 0:02:53.9]} 3... b6 {[%clk 0:02:56]} 4.
g3 {[%clk 0:02:52.9]} 4... Bb7 {[%clk 0:02:56]} 5. Bg2 {[%clk 0:02:53.8]} 5...
Be7 {[%clk 0:02:55.5]} 6. O-O {[%clk 0:02:54.5]} 6... O-O {[%clk 0:02:56]} 7. d5
{[%clk 0:02:54.7]} 7... exd5 {[%clk 0:02:55.3]} 8. Nd4 {[%clk 0:02:55.5]} 8...
Bc6 {[%clk 0:02:36.6]} 9. Nc3 {[%clk 0:02:05]} 9... dxc4 {[%clk 0:02:36.1]} 10.
e4 {[%clk 0:02:05.8]} 10... Ne8 {[%clk 0:02:05.3]} 11. Qe2 {[%clk 0:01:49.1]}
11... Bb7 {[%clk 0:02:05]} 12. Qxc4 {[%clk 0:01:47]} 12... Ba6 {[%clk
0:02:04.7]} 13. Qd5 {[%clk 0:01:37]} 13... c6 {[%clk 0:02:03.5]} 14. Qf5 {[%clk
0:01:35.1]} 14... Bxf1 {[%clk 0:02:02.8]} 15. Bxf1 {[%clk 0:01:36]} 15... g6
{[%clk 0:01:59.5]} 16. Qf3 {[%clk 0:01:31.8]} 16... Bg5 {[%clk 0:01:58.3]} 17.
e5 {[%clk 0:01:28.8]} 17... Bxc1 {[%clk 0:01:55.2]} 18. Rxc1 {[%clk 0:01:29.7]}
18... Qe7 {[%clk 0:01:52.7]} 19. Re1 {[%clk 0:01:26.9]} 19... Kh8 {[%clk
0:01:25.7]} 20. h4 {[%clk 0:01:13.5]} 20... Ng7 {[%clk 0:01:21.5]} 21. Ne4
{[%clk 0:01:11.3]} 21... Qxe5 {[%clk 0:01:19.5]} 22. Nc2 {[%clk 0:01:03.2]}
22... d5 {[%clk 0:01:17.9]} 23. Ng5 {[%clk 0:01:02.7]} 23... Qxb2 {[%clk
0:01:11.6]} 24. Nxf7+ {[%clk 0:00:56.4]} 24... Rxf7 {[%clk 0:01:11.2]} 25. Qxf7
{[%clk 0:00:57.3]} 25... Na6 {[%clk 0:01:06.4]} 26. h5 {[%clk 0:00:32]} 26...
Nc5 {[%clk 0:00:47.6]} 27. h6 {[%clk 0:00:29.4]} 27... Nge6 {[%clk 0:00:43]} 28.
Rxe6 {[%clk 0:00:28.6]} 28... Nxe6 {[%clk 0:00:42.5]} 29. Qxe6 {[%clk
0:00:29.5]} 29... Rf8 {[%clk 0:00:39.9]} 30. Qxc6 {[%clk 0:00:22.3]} 30... Qf6
{[%clk 0:00:39.2]} 31. Qxf6+ {[%clk 0:00:20.7]} 31... Rxf6 {[%clk 0:00:40.1]}
32. f4 {[%clk 0:00:20.4]} 32... g5 {[%clk 0:00:34]} 33. fxg5 {[%clk 0:00:18.1]}
33... Rg6 {[%clk 0:00:34.3]} 34. Nd4 {[%clk 0:00:13.5]} 34... Rxg5 {[%clk
0:00:34.6]} 35. Kf2 {[%clk 0:00:14.1]} 35... Rh5 {[%clk 0:00:35]} 36. Bh3 {[%clk
0:00:10.1]} 36... Rxh3 {[%clk 0:00:34.7]} 0-1

[Event "*** SCC Grand Prix: Titled Tuesday Blitz"]
[Site "Chess.com"]
[Date "2020.09.08"]
[Round "3"]
[White "Alexsur1981"]
[Black "BogdanDeac"]
[Result "1-0"]
[WhiteElo "2692"]
[BlackElo "2919"]
[TimeControl "180+1"]
[EndTime "10:29:12 PDT"]
[Termination "Alexsur1981 won on time"]

1. e4 {[%clk 0:03:00.9]} 1... e5 {[%clk 0:02:59.3]} 2. f4 {[%clk 0:02:59]} 2...
exf4 {[%clk 0:02:56.3]} 3. Bc4 {[%clk 0:02:58.2]} 3... Qh4+ {[%clk 0:02:45.1]}
4. Kf1 {[%clk 0:02:57.8]} 4... Nf6 {[%clk 0:02:44.6]} 5. Nf3 {[%clk 0:02:57.4]}
5... Qh5 {[%clk 0:02:44.1]} 6. Nc3 {[%clk 0:02:57.9]} 6... d6 {[%clk 0:02:03.2]}
7. d4 {[%clk 0:02:55.8]} 7... Be6 {[%clk 0:01:53.6]} 8. d5 {[%clk 0:02:32.1]}
8... Bg4 {[%clk 0:01:44.3]} 9. Bxf4 {[%clk 0:02:31.9]} 9... Be7 {[%clk
0:01:44.6]} 10. h3 {[%clk 0:02:29.2]} 10... Nfd7 {[%clk 0:01:31.1]} 11. Kf2
{[%clk 0:02:23.6]} 11... Bxf3 {[%clk 0:01:27.4]} 12. Qxf3 {[%clk 0:02:24.5]}
12... Qg6 {[%clk 0:01:18.4]} 13. Rhf1 {[%clk 0:02:14.4]} 13... Bf6 {[%clk
0:01:13]} 14. Kg1 {[%clk 0:02:11.9]} 14... Ne5 {[%clk 0:00:52.9]} 15. Qe2 {[%clk
0:02:11.9]} 15... a6 {[%clk 0:00:49.7]} 16. Bd3 {[%clk 0:01:55.1]} 16... Nbd7
{[%clk 0:00:49.4]} 17. Nd1 {[%clk 0:01:52.4]} 17... O-O {[%clk 0:00:44.5]} 18.
Ne3 {[%clk 0:01:42.3]} 18... Rae8 {[%clk 0:00:43.5]} 19. Rae1 {[%clk 0:01:42.7]}
19... Bh4 {[%clk 0:00:38.1]} 20. Rd1 {[%clk 0:01:33.9]} 20... Nc5 {[%clk
0:00:37.6]} 21. Bxe5 {[%clk 0:01:03.8]} 21... Rxe5 {[%clk 0:00:36.1]} 22. Nf5
{[%clk 0:01:04.3]} 22... Bf6 {[%clk 0:00:11.2]} 23. b4 {[%clk 0:01:03.5]} 23...
Nd7 {[%clk 0:00:06.5]} 24. Rf3 {[%clk 0:00:59.4]} 24... h6 {[%clk 0:00:06.4]}
25. Rg3 {[%clk 0:00:51]} 25... Qh7 {[%clk 0:00:05.6]} 26. Rf1 {[%clk 0:00:45.9]}
26... Kh8 {[%clk 0:00:05.4]} 27. Ne3 {[%clk 0:00:33.8]} 27... Qg8 {[%clk
0:00:03]} 28. Ng4 {[%clk 0:00:31.2]} 28... Rfe8 {[%clk 0:00:02.8]} 29. Nxf6
{[%clk 0:00:29.1]} 29... Nxf6 {[%clk 0:00:02.2]} 30. Rxf6 {[%clk 0:00:29.3]}
30... gxf6 {[%clk 0:00:01.8]} 31. Rxg8+ {[%clk 0:00:30.2]} 31... Rxg8 {[%clk
0:00:02.3]} 32. Qf3 {[%clk 0:00:30.7]} 32... Rg6 {[%clk 0:00:02.6]} 33. c4
{[%clk 0:00:28]} 33... Kg7 {[%clk 0:00:02.9]} 34. c5 {[%clk 0:00:27.3]} 34...
dxc5 {[%clk 0:00:03]} 35. bxc5 {[%clk 0:00:28.2]} 1-0

[Event "*** SCC Grand Prix: Titled Tuesday Blitz"]
[Site "Chess.com"]
[Date "2020.09.08"]
[Round "3"]
[White "Parhamov"]
[Black "Kaua18"]
[Result "1-0"]
[WhiteElo "2990"]
[BlackElo "2328"]
[TimeControl "180+1"]
[EndTime "10:29:12 PDT"]
[Termination "Parhamov won on time"]

1. c4 {[%clk 0:02:51.7]} 1... c5 {[%clk 0:02:57]} 2. g3 {[%clk 0:02:51.2]} 2...
Nc6 {[%clk 0:02:56.4]} 3. Bg2 {[%clk 0:02:51.6]} 3... g6 {[%clk 0:02:56.7]} 4.
h4 {[%clk 0:02:51]} 4... d6 {[%clk 0:02:56.1]} 5. h5 {[%clk 0:02:49.7]} 5... Bg7
{[%clk 0:02:55.5]} 6. Nc3 {[%clk 0:02:49.2]} 6... e5 {[%clk 0:02:54.7]} 7. a3
{[%clk 0:02:48.7]} 7... Be6 {[%clk 0:02:54.3]} 8. d3 {[%clk 0:02:48.4]} 8...
gxh5 {[%clk 0:02:33.2]} 9. Rxh5 {[%clk 0:02:46.4]} 9... Nf6 {[%clk 0:02:33.2]}
10. Rh1 {[%clk 0:02:46.2]} 10... Qd7 {[%clk 0:02:25.7]} 11. Rb1 {[%clk
0:02:45.1]} 11... d5 {[%clk 0:02:14.4]} 12. cxd5 {[%clk 0:02:44.3]} 12... Nxd5
{[%clk 0:02:15.3]} 13. Bd2 {[%clk 0:02:40.6]} 13... Nd4 {[%clk 0:02:01]} 14. Nf3
{[%clk 0:02:17.8]} 14... Nxc3 {[%clk 0:01:44.3]} 15. bxc3 {[%clk 0:02:17.3]}
15... Nxf3+ {[%clk 0:01:43.1]} 16. Bxf3 {[%clk 0:02:17.4]} 16... Bd5 {[%clk
0:01:43.5]} 17. Bxd5 {[%clk 0:02:16.7]} 17... Qxd5 {[%clk 0:01:44.4]} 18. Qa4+
{[%clk 0:02:16.2]} 18... Qc6 {[%clk 0:01:24.9]} 19. Qxc6+ {[%clk 0:02:16.2]}
19... bxc6 {[%clk 0:01:25.8]} 20. Rh4 {[%clk 0:02:14.4]} 20... O-O {[%clk
0:01:25.1]} 21. Be3 {[%clk 0:02:07.4]} 21... Rfb8 {[%clk 0:01:08]} 22. Rxb8+
{[%clk 0:02:06.3]} 22... Rxb8 {[%clk 0:01:08.9]} 23. Bxc5 {[%clk 0:01:50.2]}
23... Rb1+ {[%clk 0:00:58.4]} 24. Kd2 {[%clk 0:01:50.1]} 24... Rb2+ {[%clk
0:00:58.2]} 25. Ke3 {[%clk 0:01:50.5]} 25... f5 {[%clk 0:00:58.5]} 26. Rb4
{[%clk 0:01:45.7]} 26... Rc2 {[%clk 0:00:39.8]} 27. c4 {[%clk 0:01:42.9]} 27...
e4 {[%clk 0:00:27.9]} 28. dxe4 {[%clk 0:01:38]} 28... fxe4 {[%clk 0:00:28.8]}
29. Ra4 {[%clk 0:01:32.6]} 29... Bh6+ {[%clk 0:00:21]} 30. Kxe4 {[%clk
0:01:32.2]} 30... Rxe2+ {[%clk 0:00:21.2]} 31. Kf3 {[%clk 0:01:30.1]} 31... Rc2
{[%clk 0:00:20.3]} 32. Bxa7 {[%clk 0:01:30.2]} 32... Bf8 {[%clk 0:00:17.1]} 33.
Bd4 {[%clk 0:01:23.2]} 33... Kf7 {[%clk 0:00:17.3]} 34. Ke4 {[%clk 0:01:16.3]}
34... Re2+ {[%clk 0:00:13.1]} 35. Kd3 {[%clk 0:01:16.3]} 35... Ra2 {[%clk
0:00:12.1]} 36. Ra7+ {[%clk 0:01:12.8]} 36... Ke6 {[%clk 0:00:11.4]} 37. a4
{[%clk 0:01:07.6]} 37... h5 {[%clk 0:00:10.6]} 38. Bb6 {[%clk 0:01:04.2]} 38...
Bb4 {[%clk 0:00:08.1]} 39. a5 {[%clk 0:01:03.7]} 39... Ra3+ {[%clk 0:00:05.5]}
40. Ke2 {[%clk 0:01:02.7]} 40... Rc3 {[%clk 0:00:04.8]} 41. a6 {[%clk
0:01:00.4]} 41... Rxc4 {[%clk 0:00:04.7]} 42. Rc7 {[%clk 0:00:56.5]} 42... Rc2+
{[%clk 0:00:03.9]} 43. Kf1 {[%clk 0:00:56.7]} 43... Ra2 {[%clk 0:00:02.9]} 44.
a7 {[%clk 0:00:57.2]} 1-0

[Event "*** SCC Grand Prix: Titled Tuesday Blitz"]
[Site "Chess.com"]
[Date "2020.09.08"]
[Round "3"]
[White "Off-War"]
[Black "Justinz"]
[Result "1-0"]
[WhiteElo "2678"]
[BlackElo "2408"]
[TimeControl "180+1"]
[EndTime "10:29:13 PDT"]
[Termination "Off-War won on time"]

1. d4 {[%clk 0:02:59.5]} 1... Nf6 {[%clk 0:02:58.3]} 2. c4 {[%clk 0:02:57.5]}
2... e6 {[%clk 0:02:58.5]} 3. Nc3 {[%clk 0:02:56.8]} 3... Bb4 {[%clk 0:02:58.8]}
4. f3 {[%clk 0:02:57.2]} 4... c5 {[%clk 0:02:58.1]} 5. d5 {[%clk 0:02:56.4]}
5... d6 {[%clk 0:02:58.2]} 6. e4 {[%clk 0:02:56.1]} 6... b5 {[%clk 0:02:58.2]}
7. Ne2 {[%clk 0:02:54.4]} 7... O-O {[%clk 0:02:53.9]} 8. Nf4 {[%clk 0:02:54.3]}
8... e5 {[%clk 0:02:53]} 9. Ne2 {[%clk 0:02:54]} 9... Nh5 {[%clk 0:02:52.9]} 10.
cxb5 {[%clk 0:02:40.7]} 10... f5 {[%clk 0:02:47.5]} 11. exf5 {[%clk 0:02:37.5]}
11... Bxf5 {[%clk 0:02:46.9]} 12. Ng3 {[%clk 0:02:33.3]} 12... Qh4 {[%clk
0:01:38.7]} 13. Be3 {[%clk 0:02:31.3]} 13... e4 {[%clk 0:01:25.2]} 14. Be2
{[%clk 0:02:25.2]} 14... exf3 {[%clk 0:01:16.2]} 15. gxf3 {[%clk 0:02:26.1]}
15... Nf4 {[%clk 0:01:05.3]} 16. O-O {[%clk 0:02:19.8]} 16... Nd7 {[%clk
0:00:58.7]} 17. Nce4 {[%clk 0:02:14.5]} 17... Bh3 {[%clk 0:00:55]} 18. Nxd6
{[%clk 0:01:59.5]} 18... Bxf1 {[%clk 0:00:50.6]} 19. Bxf1 {[%clk 0:02:00.4]}
19... Ne5 {[%clk 0:00:42.8]} 20. Kh1 {[%clk 0:01:47.8]} 20... Neg6 {[%clk
0:00:26.7]} 21. Nde4 {[%clk 0:01:18]} 21... Rac8 {[%clk 0:00:25.7]} 22. d6
{[%clk 0:01:15.2]} 22... Rcd8 {[%clk 0:00:25.6]} 23. Ne2 {[%clk 0:01:06.3]}
23... Nxe2 {[%clk 0:00:24]} 24. Bxe2 {[%clk 0:01:00.6]} 24... Nf4 {[%clk
0:00:22.6]} 25. Bc4+ {[%clk 0:00:56.1]} 25... Kh8 {[%clk 0:00:21.9]} 26. Qg1
{[%clk 0:00:57]} 26... h6 {[%clk 0:00:18.1]} 27. Rf1 {[%clk 0:00:39.8]} 27...
Qh5 {[%clk 0:00:16.4]} 28. Qg3 {[%clk 0:00:34.7]} 28... Nh3 {[%clk 0:00:10.7]}
29. Kg2 {[%clk 0:00:28.1]} 29... Ng5 {[%clk 0:00:10.3]} 30. Nxg5 {[%clk
0:00:26.7]} 30... hxg5 {[%clk 0:00:11.2]} 31. Bxg5 {[%clk 0:00:27.6]} 31... Rxd6
{[%clk 0:00:06.1]} 32. Qxd6 {[%clk 0:00:27]} 32... Qxg5+ {[%clk 0:00:06.2]} 33.
Qg3 {[%clk 0:00:27.2]} 33... Qd2+ {[%clk 0:00:05.2]} 34. Kh1 {[%clk 0:00:27.2]}
1-0

[Event "*** SCC Grand Prix: Titled Tuesday Blitz"]
[Site "Chess.com"]
[Date "2020.09.08"]
[Round "3"]
[White "Aemulus20"]
[Black "Snegokhod"]
[Result "0-1"]
[WhiteElo "2548"]
[BlackElo "2370"]
[TimeControl "180+1"]
[EndTime "10:29:15 PDT"]
[Termination "Snegokhod won by resignation"]

1. e4 {[%clk 0:03:00.9]} 1... c5 {[%clk 0:02:59.4]} 2. Nf3 {[%clk 0:03:01.2]}
2... d6 {[%clk 0:02:57.7]} 3. d4 {[%clk 0:03:02.1]} 3... cxd4 {[%clk 0:02:57.2]}
4. Nxd4 {[%clk 0:03:03]} 4... Nf6 {[%clk 0:02:57.1]} 5. Nc3 {[%clk 0:03:03.5]}
5... a6 {[%clk 0:02:56.7]} 6. Be2 {[%clk 0:03:04]} 6... e6 {[%clk 0:02:55.3]} 7.
O-O {[%clk 0:03:03.1]} 7... Be7 {[%clk 0:02:54.9]} 8. Kh1 {[%clk 0:03:03.4]}
8... O-O {[%clk 0:02:54.6]} 9. f4 {[%clk 0:03:04]} 9... Qc7 {[%clk 0:02:54.3]}
10. Bf3 {[%clk 0:03:03.2]} 10... Nc6 {[%clk 0:02:53.2]} 11. Be3 {[%clk
0:02:57.4]} 11... Re8 {[%clk 0:02:52.5]} 12. a4 {[%clk 0:02:55.2]} 12... Rb8
{[%clk 0:02:51.8]} 13. Qe1 {[%clk 0:02:45.9]} 13... Nxd4 {[%clk 0:02:48.9]} 14.
Bxd4 {[%clk 0:02:46.8]} 14... e5 {[%clk 0:02:49.1]} 15. Be3 {[%clk 0:02:45.8]}
15... exf4 {[%clk 0:02:47.7]} 16. Bxf4 {[%clk 0:02:44.2]} 16... Be6 {[%clk
0:02:48.2]} 17. Qg3 {[%clk 0:02:43.3]} 17... Nd7 {[%clk 0:02:46.1]} 18. Bg4
{[%clk 0:02:21.1]} 18... Ne5 {[%clk 0:02:37.8]} 19. Bxe6 {[%clk 0:02:17.8]}
19... fxe6 {[%clk 0:02:37.8]} 20. Qh3 {[%clk 0:02:18.2]} 20... Bf6 {[%clk
0:02:35]} 21. Rad1 {[%clk 0:02:06.9]} 21... b5 {[%clk 0:02:32.5]} 22. axb5
{[%clk 0:02:06.3]} 22... axb5 {[%clk 0:02:32.7]} 23. Rf2 {[%clk 0:01:44.9]}
23... b4 {[%clk 0:02:25.3]} 24. Ne2 {[%clk 0:01:44.4]} 24... Qxc2 {[%clk
0:02:24.2]} 25. Rd2 {[%clk 0:01:16.1]} 25... Qb1+ {[%clk 0:02:11.8]} 26. Ng1
{[%clk 0:01:15.2]} 26... Qxe4 {[%clk 0:02:11.7]} 27. Rxd6 {[%clk 0:01:03.5]}
27... Nc4 {[%clk 0:02:03.9]} 28. Rd7 {[%clk 0:00:42.2]} 28... Rbd8 {[%clk
0:02:01.6]} 29. Rxd8 {[%clk 0:00:39.7]} 29... Rxd8 {[%clk 0:02:00.8]} 30. Re2
{[%clk 0:00:39.8]} 30... Qxf4 {[%clk 0:01:43]} 31. Qxe6+ {[%clk 0:00:39.3]}
31... Kf8 {[%clk 0:01:42.8]} 32. g3 {[%clk 0:00:21.7]} 32... Qd4 {[%clk
0:01:28.5]} 33. Re4 {[%clk 0:00:20.1]} 33... Qd5 {[%clk 0:01:00.8]} 34. Qxd5
{[%clk 0:00:17.1]} 34... Rxd5 {[%clk 0:01:00.7]} 35. Rxc4 {[%clk 0:00:17.3]}
35... b3 {[%clk 0:00:57.4]} 36. Rb4 {[%clk 0:00:14.7]} 36... Rd3 {[%clk
0:00:52.8]} 37. Ne2 {[%clk 0:00:12.1]} 37... Bxb2 {[%clk 0:00:52.2]} 38. Kg2
{[%clk 0:00:11.8]} 38... Bf6 {[%clk 0:00:48.5]} 39. Kf2 {[%clk 0:00:11.2]} 39...
b2 {[%clk 0:00:48.5]} 40. Ke1 {[%clk 0:00:08.7]} 40... Ra3 {[%clk 0:00:44.3]}
41. Kd2 {[%clk 0:00:06.2]} 41... Ra1 {[%clk 0:00:44.2]} 42. Kc2 {[%clk
0:00:06.5]} 42... Re1 {[%clk 0:00:43.9]} 0-1